fUSD/lending_fUSD_20251221
["ID","MTS","AMOUNT","RATE_DAILY","PERIOD"]
[399322492,1766302241726,-150.0,0.0001538,2]
[399322493,1766302241740,-150.0,0.0001539,2]
[399322494,1766302241750,-150.0,0.0001539,2]
[399322495,1766302241760,-150.34574057,0.00015391,2]
[399322496,1766302241769,-150.0,0.00015392,2]
[399322497,1766302241779,-150.0,0.00015396,2]
[399322498,1766302241789,-150.0,0.00015401,2]
[399322499,1766302241798,-150.34574057,0.00015408,2]
[399322500,1766302241808,-150.0,0.0001541,2]
[399322501,1766302241817,-150.0,0.00015411,2]
[399322502,1766302241826,-150.0,0.00015418,2]
[399322503,1766302241835,-150.0,0.00015418,2]
[399322504,1766302241844,-150.0,0.00015424,2]
[399322505,1766302241853,-150.34574057,0.00015425,2]
[399322506,1766302241863,-150.0,0.00015429,2]
[399322507,1766302241872,-150.0,0.00015431,2]
[399322508,1766302241881,-150.0,0.00015432,2]
[399322509,1766302241891,-19142.96587987,0.00015435,2]
[399322510,1766302241900,-150.0,0.00015442,2]
[399322511,1766302241910,-150.34574057,0.00015442,2]
[399322512,1766302241919,-150.0,0.00015444,2]
[399322513,1766302241928,-150.0,0.00015451,2]
[399322514,1766302241937,-150.0,0.00015458,2]
[399322515,1766302241946,-150.34574057,0.00015459,2]
[399322516,1766302241955,-2500.0,0.00015464,2]
[399322517,1766302241964,-2500.0,0.00015464,2]
[399322518,1766302241973,-150.0,0.00015468,2]
[399322519,1766302241982,-150.0,0.00015471,2]
[399322520,1766302241991,-150.0,0.00015472,2]
[399322521,1766302242000,-150.0,0.00015473,2]
[399322522,1766302242009,-150.34574057,0.00015476,2]
[399322523,1766302242019,-150.0,0.00015492,2]
[399322524,1766302242027,-150.0,0.00015492,2]
[399322525,1766302242036,-150.34574057,0.00015494,2]
[399322526,1766302242046,-150.0,0.00015497,2]
[399322527,1766302242055,-150.0,0.000155,2]
[399322528,1766302242064,-150.0,0.00015504,2]
[399322529,1766302242073,-150.0,0.00015505,2]
[399322530,1766302242082,-150.34574057,0.00015511,2]
[399322531,1766302242092,-150.0,0.00015513,2]
[399322532,1766302242101,-150.0,0.00015514,2]
[399322533,1766302242111,-150.0,0.00015523,2]
[399322534,1766302242121,-150.0,0.00015525,2]
[399322535,1766302242130,-150.34574057,0.00015528,2]
[399322536,1766302242140,-150.0,0.00015533,2]
[399322537,1766302242149,-150.0,0.00015535,2]
[399322538,1766302242158,-150.0,0.00015541,2]
[399322539,1766302242169,-150.34574057,0.00015545,2]
[399322540,1766302242178,-150.0,0.00015549,2]
[399322541,1766302242187,-150.0,0.00015549,2]
[399322542,1766302242196,-150.0,0.00015554,2]
[399322543,1766302242206,-150.0,0.00015559,2]
[399322544,1766302242215,-150.34574057,0.00015562,2]
[399322545,1766302242225,-150.0,0.00015566,2]
[399322546,1766302242234,-150.0,0.00015571,2]
[399322547,1766302242244,-150.0,0.00015574,2]
[399322548,1766302242253,-150.0,0.00015575,2]
[399322549,1766302242262,-150.0,0.00015577,2]
[399322550,1766302242273,-150.34574057,0.00015579,2]
[399322551,1766302242285,-6397.9590015,0.0001558,2]
[399322552,1766302242295,-2571.1504395,0.0001558,2]
[399322553,1766302242304,-150.0,0.00015593,2]
[399322554,1766302242313,-150.0,0.00015595,2]
[399322555,1766302242323,-150.0,0.00015597,2]
[399322556,1766302242332,-150.34574057,0.00015597,2]
[399322557,1766302242341,-150.0,0.00015601,2]
[399322558,1766302242351,-150.0,0.00015613,2]
[399322559,1766302242360,-150.34574057,0.00015614,2]
[399322560,1766302242370,-150.0,0.00015615,2]
[399322561,1766302242380,-150.0,0.00015627,2]
[399322562,1766302242391,-150.0,0.00015627,2]
[399322563,1766302242407,-150.0,0.00015627,2]
[399322564,1766302242416,-150.0,0.00015627,2]
[399322565,1766302242425,-150.34574057,0.00015631,2]
[399322566,1766302242434,-150.0,0.00015636,2]
[399322567,1766302242443,-150.34574057,0.00015648,2]
[399322568,1766302242453,-150.0,0.00015649,2]
[399322569,1766302242462,-150.0,0.00015654,2]
[399322570,1766302242472,-150.0,0.00015656,2]
[399322571,1766302242481,-150.0,0.00015658,2]
[399322572,1766302242490,-150.0,0.00015661,2]
[399322573,1766302242499,-150.34574057,0.00015665,2]
[399322574,1766302242508,-150.0,0.00015677,2]
[399322575,1766302242518,-150.0,0.0001568,2]
[399322576,1766302242527,-150.0,0.0001568,2]
[399322577,1766302242549,-150.34574057,0.00015682,2]
[399322578,1766302242558,-150.0,0.00015685,2]
[399322579,1766302242570,-150.0,0.00015689,2]
[399322580,1766302242579,-150.0,0.00015695,2]
[399322581,1766302242589,-150.0,0.00015697,2]
[399322582,1766302242599,-150.34574057,0.00015699,2]
[399322583,1766302242608,-150.0,0.00015706,2]
[399322584,1766302242618,-150.0,0.00015712,2]
[399322585,1766302242628,-150.0,0.00015712,2]
[399322586,1766302242638,-150.0,0.00015712,2]
[399322587,1766302242648,-150.34574057,0.00015717,2]
[399322588,1766302242657,-150.0,0.00015717,2]
[399322589,1766302242668,-150.0,0.0001572,2]
[399322590,1766302242679,-150.0,0.00015721,2]
[399322591,1766302242691,-150.0,0.00015729,2]
[399322592,1766302242700,-150.0,0.00015732,2]
[399322593,1766302242711,-150.34574057,0.00015734,2]
[399322594,1766302242722,-150.0,0.00015738,2]
[399322595,1766302242736,-150.0,0.00015741,2]
[399322596,1766302242745,-150.0,0.00015751,2]
[399322597,1766302242755,-150.34574057,0.00015751,2]
[399322598,1766302242765,-231.03,0.00015754,2]
[399322599,1766302242775,-150.0,0.00015758,2]
[399322600,1766302242784,-150.0,0.00015758,2]
[399322601,1766302242793,-150.0,0.00015758,2]
[399322602,1766302242802,-150.0,0.00015763,2]
[399322603,1766302242819,-150.34574057,0.00015768,2]
[399322604,1766302242829,-150.0,0.00015779,2]
[399322605,1766302242838,-150.0,0.00015782,2]
[399322606,1766302242848,-150.0,0.00015784,2]
[399322607,1766302242858,-150.34574057,0.00015785,2]
[399322608,1766302242867,-150.0,0.00015794,2]
[399322609,1766302242876,-150.0,0.00015797,2]
[399322610,1766302242885,-150.0,0.00015799,2]
[399322611,1766302242895,-150.34574057,0.00015802,2]
[399322612,1766302242904,-2228.99632343,0.00015807,2]
[399322613,1766302242913,-150.0,0.0001581,2]
[399322614,1766302242922,-150.0,0.0001581,2]
[399322615,1766302242931,-150.0,0.00015813,2]
[399322616,1766302242940,-150.34574057,0.0001582,2]
[399322617,1766302242950,-150.0,0.0001582,2]
[399322618,1766302242959,-150.0,0.0001583,2]
[399322619,1766302242968,-150.0,0.00015831,2]
[399322620,1766302242978,-150.0,0.00015836,2]
[399322621,1766302242987,-150.34574057,0.00015837,2]
[399322622,1766302242996,-150.0,0.0001584,2]
[399322623,1766302243006,-150.0,0.00015844,2]
[399322624,1766302243015,-150.34574057,0.00015854,2]
[399322625,1766302243024,-150.0,0.00015854,2]
[399322626,1766302243033,-150.0,0.00015854,2]
[399322627,1766302243042,-150.0,0.00015861,2]
[399322628,1766302243052,-150.0,0.00015863,2]
[399322629,1766302243061,-150.0,0.00015865,2]
[399322630,1766302243070,-150.0,0.00015866,2]
[399322631,1766302243080,-150.34574057,0.00015871,2]
[399322632,1766302243090,-150.0,0.00015874,2]
[399322633,1766302243100,-150.0,0.00015881,2]
[399322634,1766302243110,-150.34574057,0.00015888,2]
[399322635,1766302243119,-150.0,0.00015889,2]
[399322636,1766302243128,-688.49839244,0.00015894,2]
[399322637,1766302243138,-150.0,0.00015899,2]
[399322638,1766302243147,-2177.01080813,0.00015901,2]
[399322639,1766302243157,-3517.27398556,0.00015901,2]
[399322640,1766302243166,-165.26057485,0.00015901,2]
[399322641,1766302243175,-407.16164262,0.00015901,2]
[399322642,1766302243185,-1182.39122948,0.00015901,2]
[399322643,1766302243195,-170.00069611,0.00015901,2]
[399322644,1766302243205,-150.0,0.00015902,2]
[399322645,1766302243215,-150.0,0.00015902,2]
[399322646,1766302243224,-150.0,0.00015905,2]
[399322647,1766302243235,-150.34574057,0.00015905,2]
[399322648,1766302243244,-150.0,0.00015915,2]
[399322649,1766302243254,-150.0,0.00015922,2]
[399322650,1766302243265,-150.34574057,0.00015923,2]
[399322651,1766302243275,-19142.96587987,0.00015924,2]
[399322652,1766302243285,-150.0,0.00015925,2]
[399322654,1766302243568,-150.0,0.00015933,2]
[399322655,1766302243579,-150.0,0.00015936,2]
[399322656,1766302243588,-150.0,0.00015938,2]
[399322658,1766302243598,-150.34574057,0.0001594,2]
[399322659,1766302243607,-150.0,0.00015941,2]
[399322660,1766302243616,-150.0,0.00015941,2]
[399322661,1766302243625,-150.0,0.00015943,2]
[399322662,1766302243635,-150.34574057,0.00015957,2]
[399322663,1766302243644,-150.0,0.00015963,2]
[399322664,1766302243654,-150.0,0.00015967,2]
[399322665,1766302243663,-150.0,0.00015967,2]
[399322666,1766302243673,-150.0,0.00015967,2]
[399322667,1766302243682,-150.0,0.00015967,2]
[399322668,1766302243692,-500.96497505,0.00015973,2]
[399322669,1766302243702,-500.30670484,0.00015973,2]
[399322670,1766302243712,-500.0,0.00015973,2]
[399322671,1766302243722,-501.02237634,0.00015973,2]
[399322672,1766302243735,-160.18741035,0.00015973,2]
[399322673,1766302243744,-160.18648397,0.00015973,2]
[399322674,1766302243754,-160.18648397,0.00015973,2]
[399322675,1766302243763,-160.18741035,0.00015973,2]
[399322676,1766302243772,-500.55342912,0.00015973,2]
[399322677,1766302243782,-168.18676432,0.00015973,2]
[399322678,1766302243792,-160.18740865,0.00015973,2]
[399322679,1766302243801,-500.52093975,0.00015973,2]
[399322680,1766302243811,-500.34372301,0.00015973,2]
[399322681,1766302243820,-501.03374928,0.00015973,2]
[399322682,1766302243830,-160.18818998,0.00015973,2]
[399322683,1766302243840,-160.18740865,0.00015973,2]
[399322684,1766302243849,-160.18741035,0.00015973,2]
[399322685,1766302243859,-150.17482874,0.00015973,2]
[399322686,1766302243868,-160.18740865,0.00015973,2]
[399322687,1766302243878,-500.51801303,0.00015973,2]
[399322688,1766302243888,-500.47443561,0.00015973,2]
[399322689,1766302243897,-330.74959628,0.00015973,2]
[399322690,1766302243907,-334.60508476,0.00015973,2]
[399322691,1766302243916,-503.05961393,0.00015973,2]
[399322692,1766302243926,-500.94315353,0.00015973,2]
[399322693,1766302243935,-160.18648371,0.00015973,2]
[399322694,1766302243944,-160.18740865,0.00015973,2]
[399322695,1766302243954,-500.86854265,0.00015973,2]
[399322696,1766302243964,-160.176,0.00015973,2]
[399322697,1766302243974,-530.05316157,0.00015973,2]
[399322698,1766302243983,-500.0,0.00015973,2]
[399322699,1766302243992,-370.53527967,0.00015973,2]
[399322700,1766302244002,-501.34405812,0.00015973,2]
[399322701,1766302244011,-501.99692439,0.00015973,2]
[399322703,1766302244021,-500.0,0.00015973,2]
[399322704,1766302244030,-500.82535785,0.00015973,2]
[399322705,1766302244040,-501.04177666,0.00015973,2]
[399322706,1766302244050,-162.2682575,0.00015973,2]
[399322707,1766302244059,-452.23233136,0.00015973,2]
[399322708,1766302244069,-500.88956143,0.00015973,2]
[399322709,1766302244079,-590.29428357,0.00015973,2]
[399322710,1766302244089,-333.50168371,0.00015973,2]
[399322711,1766302244098,-500.35420058,0.00015973,2]
[399322712,1766302244108,-500.67170266,0.00015973,2]
[399322713,1766302244117,-177.38138354,0.00015973,2]
[399322714,1766302244127,-500.69834491,0.00015973,2]
[399322715,1766302244136,-500.92329476,0.00015973,2]
[399322716,1766302244145,-168.59717172,0.00015973,2]
[399322717,1766302244155,-150.34574057,0.00015974,2]
[399322718,1766302244164,-150.0,0.00015974,2]
[399322719,1766302244173,-150.0,0.00015983,2]
[399322720,1766302244182,-574.96820691,0.0001599,2]
[399322721,1766302244192,-574.96820691,0.0001599,2]
[399322722,1766302244202,-150.34574057,0.00015991,2]
[399322723,1766302244212,-150.0,0.00015993,2]
[399322724,1766302244223,-150.0,0.00015995,2]
[399322725,1766302244232,-150.0,0.00015998,2]
[399322726,1766302244243,-881938.35929916,0.00016,4]
[399322727,1766302244252,-983803.53267005,0.00016,4]
[399322728,1766302245139,-2169.58896356,0.00016,4]
[399322729,1766302245151,-3199.48917838,0.00016,4]
[399322730,1766302245162,-423.81024343,0.00016,4]
[399322731,1766302245174,-3240.35295883,0.00016,4]
[399322732,1766302245185,-564.0886184,0.00016,4]
[399322733,1766302245196,-1012.67199256,0.00016,4]
[399322734,1766302245207,-666.0,0.00016,4]
[399322735,1766302245218,-19016.32010675,0.00016,4]
[399322736,1766302245230,-1333.62503614,0.00016,4]
[399322737,1766302245242,-15895.53181498,0.00016,4]
[399322738,1766302245253,-1396.78893979,0.00016,4]
[399322739,1766302245266,-9533.17266637,0.00016,4]
[399322740,1766302245277,-2888.17197887,0.00016,4]
[399322741,1766302245288,-8529.68170942,0.00016,4]
[399322742,1766302245299,-24418.91535953,0.00016,4]
[399322743,1766302245310,-472.9770057,0.00016,4]
[399322744,1766302245325,-7396.46225131,0.00016,4]
[399322745,1766302245336,-474.53947299,0.00016,4]
[399322746,1766302245347,-260.25,0.00016,4]
[399322747,1766302245695,-254.10277591,0.00013699,2]
[399322748,1766302245704,-151.0,0.00013699,2]
[399322749,1766302245714,-1583204.783593,0.00016,4]
[399322750,1766302245723,-150.0,0.00016001,2]
[399322751,1766302245736,-150.0,0.00016004,2]
[399322752,1766302245746,-150.34574057,0.00016008,2]
[399322753,1766302245755,-150.0,0.0001601,2]
[399322754,1766302245764,-2609.34995974,0.00016012,2]
[399322755,1766302245773,-1970.93784907,0.00016012,2]
[399322756,1766302245782,-150.0,0.00016019,2]
[399322757,1766302245791,-150.0,0.00016024,2]
[399322758,1766302245800,-150.34574057,0.00016025,2]
[399322759,1766302245811,-150.0,0.00016029,2]
[399322760,1766302245820,-150.0,0.00016035,2]
[399322761,1766302245829,-150.34574057,0.00016043,2]
[399322762,1766302245839,-150.0,0.00016045,2]
[399322763,1766302245849,-150.0,0.00016046,2]
[399322764,1766302245858,-150.0,0.00016047,2]
[399322765,1766302245867,-150.0,0.0001606,2]
[399322766,1766302245877,-150.34574057,0.0001606,2]
[399322767,1766302245886,-150.0,0.00016065,2]
[399322768,1766302245895,-150.0,0.00016069,2]
[399322769,1766302245905,-150.0,0.00016072,2]
[399322770,1766302245914,-150.0,0.00016072,2]
[399322771,1766302245923,-150.34574057,0.00016077,2]
[399322772,1766302245932,-150.0,0.0001608,2]
[399322773,1766302245941,-150.0,0.00016083,2]
[399322774,1766302245950,-150.0,0.00016086,2]
[399322775,1766302245959,-150.0,0.00016091,2]
[399322776,1766302245969,-150.34574057,0.00016094,2]
[399322777,1766302245978,-150.0,0.00016098,2]
[399322778,1766302245987,-150.0,0.00016103,2]
[399322779,1766302245997,-150.0,0.00016106,2]
[399322780,1766302246006,-150.34574057,0.00016111,2]
[399322781,1766302246015,-150.0,0.00016119,2]
[399322782,1766302246024,-150.0,0.00016122,2]
[399322783,1766302246033,-150.0,0.00016124,2]
[399322784,1766302246043,-150.0,0.00016127,2]
[399322785,1766302246052,-150.34574057,0.00016128,2]
[399322786,1766302246061,-150.0,0.00016137,2]
[399322787,1766302246070,-150.0,0.00016137,2]
[399322788,1766302246079,-150.0,0.00016137,2]
[399322790,1766302246088,-150.0,0.00016137,2]
[399322791,1766302246097,-150.0,0.00016137,2]
[399322792,1766302246106,-150.0,0.00016137,2]
[399322793,1766302246114,-150.34574057,0.00016146,2]
[399322794,1766302246124,-150.0,0.00016147,2]
[399322795,1766302246133,-150.0,0.0001615,2]
[399322796,1766302246143,-150.0,0.00016152,2]
[399322797,1766302246153,-150.0,0.00016155,2]
[399322798,1766302246162,-150.34574057,0.00016163,2]
[399322799,1766302246171,-150.0,0.00016168,2]
[399322800,1766302246181,-150.0,0.00016171,2]
[399322801,1766302246191,-150.0,0.00016176,2]
[399322802,1766302246200,-150.34574057,0.0001618,2]
[399322803,1766302246209,-150.0,0.00016183,2]
[399322804,1766302246218,-736.0,0.00016184,2]
[399322805,1766302246230,-150.0,0.00016188,2]
[399322806,1766302246239,-150.0,0.00016191,2]
[399322807,1766302246248,-150.0,0.00016194,2]
[399322808,1766302246259,-150.34574057,0.00016197,2]
[399322809,1766302246268,-5000.00700841,0.000162,5]
[399322810,1766302246282,-150.0,0.00016202,2]
[399322811,1766302246291,-150.0,0.00016202,2]
[399322812,1766302246301,-150.0,0.00016205,2]
[399322813,1766302246310,-150.0,0.00016209,2]
[399322814,1766302246320,-150.0,0.00016214,2]
[399322815,1766302246330,-150.34574057,0.00016214,2]
[399322816,1766302246339,-150.0,0.00016227,2]
[399322817,1766302246348,-150.0,0.00016228,2]
[399322818,1766302246357,-150.0,0.00016229,2]
[399322819,1766302246366,-150.34574057,0.00016231,2]
[399322820,1766302246376,-150.0,0.00016239,2]
[399322821,1766302246385,-150.0,0.00016245,2]
[399322822,1766302246394,-150.34574057,0.00016249,2]
[399322823,1766302246404,-150.0,0.0001625,2]
[399322824,1766302246413,-2105.55338738,0.0001625,2]
[399322825,1766302246422,-150.0,0.00016255,2]
[399322826,1766302246431,-150.0,0.00016263,2]
[399322827,1766302246439,-150.34574057,0.00016266,2]
[399322828,1766302246449,-150.0,0.0001627,2]
[399322829,1766302246458,-150.0,0.00016273,2]
[399322830,1766302246467,-150.0,0.00016276,2]
[399322831,1766302246476,-150.0,0.00016279,2]
[399322832,1766302246485,-150.0,0.00016281,2]
[399322833,1766302246494,-150.34574057,0.00016283,2]
[399322834,1766302246504,-150.0,0.0001629,2]
[399322835,1766302246513,-150.0,0.000163,2]
[399322836,1766302246522,-150.34574057,0.000163,2]
[399322837,1766302246531,-150.0,0.00016307,2]
[399322838,1766302246540,-150.0,0.00016307,2]
[399322839,1766302246549,-150.0,0.00016307,2]
[399322840,1766302246558,-150.0,0.00016307,2]
[399322841,1766302246567,-150.0,0.00016311,2]
[399322842,1766302246577,-150.34574057,0.00016317,2]
[399322843,1766302246586,-150.0,0.00016331,2]
[399322844,1766302246595,-150.0,0.00016333,2]
[399322845,1766302246603,-150.0,0.00016333,2]
[399322846,1766302246612,-150.34574057,0.00016334,2]
[399322847,1766302246621,-150.0,0.00016336,2]
[399322848,1766302246630,-150.0,0.00016338,2]
[399322849,1766302246639,-150.0,0.00016341,2]
[399322850,1766302246649,-150.0,0.00016349,2]
[399322851,1766302246658,-150.34574057,0.00016351,2]
[399322852,1766302246667,-150.0,0.00016352,2]
[399322853,1766302246676,-150.0,0.00016359,2]
[399322854,1766302246686,-150.0,0.00016369,2]
[399322855,1766302246695,-150.34574057,0.00016369,2]
[399322856,1766302246704,-150.0,0.00016372,2]
[399322857,1766302246713,-150.0,0.00016372,2]
[399322858,1766302246722,-150.0,0.00016375,2]
[399322859,1766302246734,-150.0,0.00016385,2]
[399322860,1766302246744,-150.34574057,0.00016386,2]
[399322861,1766302246753,-150.0,0.00016393,2]
[399322862,1766302246762,-150.0,0.000164,2]
[399322863,1766302246772,-3517.27398555,0.00016401,2]
[399322864,1766302246781,-165.26057485,0.00016401,2]
[399322865,1766302246790,-407.16164261,0.00016401,2]
[399322866,1766302246800,-150.34574057,0.00016403,2]
[399322867,1766302246810,-150.0,0.00016408,2]
[399322868,1766302246820,-150.0,0.00016409,2]
[399322869,1766302246829,-150.0,0.00016411,2]
[399322870,1766302246838,-19142.96587987,0.00016412,2]
[399322871,1766302246847,-150.0,0.00016413,2]
[399322872,1766302246856,-150.34574057,0.0001642,2]
[399322873,1766302246865,-150.0,0.0001642,2]
[399322874,1766302246874,-150.0,0.0001642,2]
[399322875,1766302246883,-150.0,0.0001643,2]
[399322876,1766302246893,-150.0,0.00016434,2]
[399322877,1766302246902,-150.34574057,0.00016437,2]
[399322878,1766302246911,-150.0,0.00016438,2]
[399322879,1766302246920,-300.0,0.00016438,3]
[399322880,1766302246929,-300.0,0.00016438,3]
[399322881,1766302246938,-300.0,0.00016438,3]
[399322882,1766302246947,-300.0,0.00016438,3]
[399322883,1766302246956,-300.0,0.00016438,3]
[399322884,1766302246966,-151.0,0.00016438,2]
[399322885,1766302246975,-11458.47,0.00016438,2]
[399322886,1766302246984,-151.0,0.00016438,2]
[399322887,1766302246993,-151.0,0.00016438,2]
[399322888,1766302247002,-151.0,0.00016438,2]
[399322889,1766302247011,-151.0,0.00016438,2]
[399322890,1766302247020,-151.0,0.00016438,2]
[399322891,1766302247029,-151.0,0.00016438,2]
[399322892,1766302247038,-151.0,0.00016438,2]
[399322893,1766302247047,-151.0,0.00016438,2]
[399322894,1766302247057,-151.0,0.00016438,2]
[399322895,1766302247066,-151.0,0.00016438,2]
[399322896,1766302247075,-151.0,0.00016438,2]
[399322897,1766302247084,-151.0,0.00016438,2]
[399322898,1766302247093,-151.0,0.00016438,2]
[399322899,1766302247102,-151.0,0.00016438,2]
[399322900,1766302247112,-151.0,0.00016438,2]
[399322901,1766302247122,-151.0,0.00016438,2]
[399322902,1766302247131,-227.735188,0.00016438,2]
[399322903,1766302247140,-713.97283296,0.00016442,2]
[399322904,1766302247150,-150.0,0.00016443,2]
[399322905,1766302247159,-150.0,0.00016444,2]
[399322906,1766302247168,-1026.5,0.00016452,2]
[399322907,1766302247178,-150.0,0.00016454,2]
[399322908,1766302247188,-150.34574057,0.00016454,2]
[399322909,1766302247197,-150.0,0.00016461,2]
[399322910,1766302247206,-150.0,0.00016464,2]
[399322911,1766302247215,-150.0,0.00016464,2]
[399322912,1766302247225,-150.34574057,0.00016472,2]
[399322913,1766302247234,-150.0,0.00016475,2]
[399322914,1766302247243,-150.0,0.00016477,2]
[399322915,1766302247253,-150.0,0.0001648,2]
[399322916,1766302247263,-150.34574057,0.00016489,2]
[399322917,1766302247272,-150.0,0.0001649,2]
[399322918,1766302247281,-150.0,0.00016492,2]
[399322919,1766302247290,-150.0,0.00016495,2]
[399322920,1766302247300,-2177.01080811,0.000165,2]
[399322921,1766302247309,-150.34574057,0.00016506,2]
[399322922,1766302247319,-150.0,0.00016511,2]
[399322923,1766302247329,-150.0,0.00016516,2]
[399322924,1766302247338,-150.0,0.00016516,2]
[399322925,1766302247347,-823.0,0.00016516,2]
[399322926,1766302247356,-823.0,0.00016516,2]
[399322927,1766302247366,-150.0,0.00016516,2]
[399322928,1766302247375,-1000.0,0.00016521,2]
[399322929,1766302247384,-150.0,0.00016523,2]
[399322930,1766302247394,-150.34574057,0.00016523,2]
[399322931,1766302247403,-150.0,0.00016533,2]
[399322932,1766302247412,-150.0,0.00016536,2]
[399322933,1766302247421,-150.34574057,0.0001654,2]
[399322934,1766302247430,-150.0,0.00016542,2]
[399322935,1766302247440,-150.0,0.00016545,2]
[399322936,1766302247449,-150.0,0.00016553,2]
[399322937,1766302247459,-150.0,0.00016554,2]
[399322938,1766302247468,-150.0,0.00016557,2]
[399322939,1766302247478,-150.34574057,0.00016557,2]
[399322940,1766302247488,-1000.0,0.00016558,2]
[399322941,1766302247498,-150.0,0.00016562,2]
[399322942,1766302247507,-150.0,0.00016562,2]
[399322943,1766302247516,-150.0,0.00016562,2]
[399322944,1766302247526,-150.0,0.00016568,2]
[399322945,1766302247535,-150.34574057,0.00016575,2]
[399322946,1766302247544,-150.0,0.00016577,2]
[399322947,1766302247554,-150.0,0.00016579,2]
[399322948,1766302247562,-150.0,0.00016585,2]
[399322949,1766302247579,-150.0,0.00016589,2]
[399322950,1766302247588,-150.34574057,0.00016592,2]
[399322951,1766302247598,-150.0,0.00016594,2]
[399322952,1766302247607,-150.0,0.00016594,2]
[399322953,1766302247616,-150.0,0.00016597,2]
[399322954,1766302247625,-300.0,0.00016607,2]
[399322955,1766302247634,-300.0,0.00016607,2]
[399322956,1766302247643,-300.0,0.00016607,2]
[399322957,1766302247652,-300.0,0.00016607,2]
[399322958,1766302247667,-306.55157077,0.00016607,2]
[399322959,1766302247677,-150.34574057,0.00016609,2]
[399322960,1766302247686,-150.0,0.00016613,2]
[399322961,1766302247695,-150.0,0.00016616,2]
[399322962,1766302247704,-150.0,0.00016618,2]
[399322963,1766302247713,-150.0,0.0001662,2]
[399322964,1766302247722,-150.0,0.00016625,2]
[399322965,1766302247735,-150.34574057,0.00016626,2]
[399322966,1766302247744,-250.0,0.00016633,2]
[399322967,1766302247753,-150.0,0.00016638,2]
[399322968,1766302247763,-3292.0,0.00016641,2]
[399322969,1766302247773,-150.34574057,0.00016643,2]
[399322970,1766302247782,-150.0,0.00016647,2]
[399322971,1766302247791,-150.0,0.00016647,2]
[399322972,1766302247801,-150.0,0.00016647,2]
[399322973,1766302247810,-150.0,0.00016647,2]
[399322974,1766302247819,-150.0,0.00016659,2]
[399322975,1766302247828,-150.34574057,0.0001666,2]
[399322976,1766302247837,-150.0,0.00016661,2]
[399322977,1766302247846,-150.0,0.00016673,2]
[399322978,1766302247856,-150.0,0.00016677,2]
[399322979,1766302247866,-150.34574057,0.00016677,2]
[399322980,1766302247875,-150.0,0.00016679,2]
[399322981,1766302247884,-150.0,0.00016681,2]
[399322982,1766302247894,-150.34574057,0.00016695,2]
[399322983,1766302247903,-150.0,0.00016697,2]
[399322984,1766302247912,-150.0,0.00016699,2]
[399322985,1766302247922,-150.0,0.000167,2]
[399322986,1766302247930,-2177.01080811,0.000167,2]
[399322987,1766302247940,-150.0,0.00016703,2]
[399322988,1766302247949,-150.0,0.00016708,2]
[399322989,1766302247959,-150.34574057,0.00016712,2]
[399322990,1766302247968,-160.85,0.00016712,2]
[399322991,1766302247978,-298.26089446,0.00016713,2]
[399322992,1766302247988,-2349.0,0.00016713,2]
[399322993,1766302247997,-151.0,0.00016713,2]
[399322994,1766302248006,-334.5472959,0.00016713,2]
[399322995,1766302248015,-150.0,0.00016715,2]